[Event "Eurasia Open Cup 2019"]
[Site "Ekaterinburg"]
[Date "2019.08.07"]
[Round "7.27"]
[White "Lysenko, Margarita"]
[Black "Hamitevici, Vladimir"]
[Result "0-1"]
[ECO "A88"]
[WhiteElo "2224"]
[BlackElo "2480"]
[Annotator "ChessBase"]
[PlyCount "134"]
[EventDate "2019.07.31"]
[EventType "swiss"]
[EventCountry "RUS"]
[SourceTitle "playchess.com"]
[Source "ChessBase"]
[SourceQuality "1"]
[TimeControl "5400+30"]

1. d4 {[%emt 0:00:00]} d6 {[%emt 0:11:43]} 2. Nf3 {[%emt 0:00:12]} f5 {[%emt 0:05:42]} 3. g3 {[%emt 0:02:20]} Nf6 {[%emt 0:00:17]} 4. Bg2 {[%emt 0:00:10]} g6 {[%emt 0:00:07]} 5. O-O {[%emt 0:01:21]} Bg7 {[%emt 0:00:35]} 6. c4 {[%emt 0:00:02]} O-O {[%emt 0:00:29]} 7. Nc3 {[%emt 0:00:44]} c6 {[%emt 0:01:20]} 8. Qb3 {[%emt 0:01:33]} Kh8 {[%emt 0:07:02]} 9. Rd1 {[%emt 0:02:36]} Na6 {[%emt 0:01:34]} 10. Qa3 {[%emt 0:11:08]} Rb8 {[%emt 0:02:17]} 11. b4 {[%emt 0:13:52]} Nc7 {[%emt 0:01:39]} 12. Bb2 {[%emt 0:07:11]} b5 {[%emt 0:06:56]} 13. d5 {[%emt 0:29:23]} a5 {[%emt 0:00:15]} 14. cxb5 {[%emt 0:07:38]} axb4 {[%emt 0:01:17]} 15. Qxb4 {[%emt 0:00:45]} Ncxd5 {[%emt 0:00:41]} 16. Nxd5 {[%emt 0:06:33]} Rxb5 {[%emt 0:00:10]} 17. Qa3 {[%emt 0:07:31]} cxd5 {[%emt 0:02:23]} 18. Rac1 {[%emt 0:02:14]} Qb6 {[%emt 0:06:49]} 19. Bd4 {[%emt 0:01:50]} Qb7 {[%emt 0:02:52]} 20. Bxf6 {[%emt 0:01:04]} Bxf6 {[%emt 0:00:10]} 21. Nd4 {[%emt 0:00:05]} Rb6 {[%emt 0:07:03]} 22. Qa5 {[%emt 0:00:28]} e6 {[%emt 0:00:50]} 23. a4 {[%emt 0:00:55]} Bd7 {[%emt 0:00:53]} 24. Nb5 {[%emt 0:01:07]} Bxb5 {[%emt 0:09:05]} 25. axb5 {[%emt 0:00:06]} Rxb5 {[%emt 0:00:05]} 26. Qd2 {[%emt 0:01:35]} Qb6 {[%emt 0:03:06]} 27. h4 {[%emt 0:00:03]} Kg7 {[%emt 0:01:11]} 28. e3 {[%emt 0:00:23]} Rb8 {[%emt 0:00:48]} 29. Rc2 {[%emt 0:00:53]} Rc5 {[%emt 0:00:14]} 30. Ra2 {[%emt 0:00:15]} h6 {[%emt 0:06:38]} 31. Bf1 {[%emt 0:00:00]} g5 {[%emt 0:01:05]} 32. h5 {[%emt 0:00:05]} g4 {[%emt 0:00:26]} 33. Ra6 {[%emt 0:01:05]} Qc7 {[%emt 0:00:24]} 34. Qa2 {[%emt 0:01:08]} Qe7 {[%emt 0:05:05]} 35. Rb1 {[%emt 0:00:13]} Rbc8 {[%emt 0:06:11]} 36. Qa4 {[%emt 0:00:25]} R5c7 {[%emt 0:00:38]} 37. Rbb6 {[%emt 0:00:53]} Be5 {[%emt 0:00:26]} 38. Ra8 {[%emt 0:00:08]} Qf7 {[%emt 0:01:54]} 39. Rbb8 {[%emt 0:01:04]} Rxb8 {[%emt 0:00:32]} 40. Rxb8 {[%emt 0:00:00]} Qxh5 {[%emt 0:01:07]} 41. Qa8 {[%emt 0:00:24]} Qf7 {[%emt 0:01:59]} 42. Rd8 {[%emt 0:00:32]} Rd7 {[%emt 0:00:25]} 43. Re8 {[%emt 0:00:53]} Re7 {[%emt 0:00:19]} 44. Rd8 {[%emt 0:00:17]} Kh7 {[%emt 0:02:28]} 45. Bb5 {[%emt 0:00:36]} Bg7 {[%emt 0:01:38]} 46. Rxd6 {[%emt 0:00:00]} Kg6 {[%emt 0:01:22]} 47. Qc8 {[%emt 0:00:41]} Kf6 {[%emt 0:00:54]} 48. Bd7 {[%emt 0:00:27]} h5 {[%emt 0:00:35]} 49. Qc3+ {[%emt 0:00:31]} Kg5 {[%emt 0:00:48]} 50. Qc6 {[%emt 0:00:53]} Be5 {[%emt 0:00:31]} 51. Rxe6 {[%emt 0:00:19]} Bxg3 {[%emt 0:00:53]} 52. Rxe7 {[%emt 0:00:15]} Qxe7 {[%emt 0:00:12]} 53. Qxd5 {[%emt 0:00:59]} Be5 {[%emt 0:00:49]} 54. Qg8+ {[%emt 0:00:11]} Bg7 {[%emt 0:00:13]} 55. Qd5 {[%emt 0:00:48]} Qe5 {[%emt 0:00:43]} 56. Qxe5 {[%emt 0:00:19]} Bxe5 {[%emt 0:00:08]} 57. f4+ {[%emt 0:00:52]} Bxf4 {[%emt 0:00:05]} 58. exf4+ {[%emt 0:00:05]} Kxf4 {[%emt 0:00:05]} 59. Kg2 {[%emt 0:00:22]} h4 {[%emt 0:00:10]} 60. Bc8 {[%emt 0:00:26]} Kg5 {[%emt 0:01:06]} 61. Bd7 {[%emt 0:00:44]} h3+ {[%emt 0:02:25]} 62. Kg3 {[%emt 0:00:16]} f4+ {[%emt 0:00:06]} 63. Kh2 {[%emt 0:00:58]} Kh4 {[%emt 0:00:06]} 64. Bc6 {[%emt 0:00:38]} f3 {[%emt 0:00:07]} 65. Bb5 {[%emt 0:00:34]} g3+ {[%emt 0:00:24]} 66. Kg1 {[%emt 0:00:30]} g2 {[%emt 0:00:10]} 67. Kh2 {[%emt 0:00:30]} f2 {[%emt 0:00:06]} 0-1

[Event "Eurasia Open Cup 2019"]
[Site "Ekaterinburg"]
[Date "2019.08.07"]
[Round "7.28"]
[White "Savitskiy, Sergey"]
[Black "Manakova, Maria"]
[Result "1-0"]
[ECO "B31"]
[WhiteElo "2418"]
[BlackElo "2237"]
[Annotator "NA"]
[PlyCount "87"]
[EventDate "2019.07.31"]
[EventType "swiss"]
[EventCountry "RUS"]
[SourceTitle "playchess.com"]
[Source "ChessBase"]
[SourceQuality "1"]
[TimeControl "5400+30"]

1. e4 {[%emt 0:00:00]} c5 {[%emt 0:04:40]} 2. Nf3 {[%emt 0:00:22]} Nc6 {[%emt 0:00:14]} 3. Bb5 {[%emt 0:00:00]} g6 {[%emt 0:00:19]} 4. O-O {[%emt 0:00:12]} Bg7 {[%emt 0:00:36]} 5. c3 {[%emt 0:00:10]} Nf6 {[%emt 0:00:10]} 6. Re1 {[%emt 0:00:07]} O-O {[%emt 0:00:56]} 7. d4 {[%emt 0:00:40]} d5 {[%emt 0:00:00]} 8. exd5 {[%emt 0:00:09]} Qxd5 {[%emt 0:00:25]} 9. c4 {[%emt 0:03:21]} Qd6 {[%emt 0:00:20]} 10. d5 {[%emt 0:12:57]} a6 {[%emt 0:14:11]} 11. Ba4 {[%emt 0:44:44]} Na5 {[%emt 0:02:51]} 12. Na3 {[%emt 0:00:53]} b5 {[%emt 0:00:52]} 13. cxb5 {[%emt 0:00:11]} Nxd5 {[%emt 0:00:24]} 14. Bg5 {[%emt 0:10:04]} e6 {[%emt 0:05:29]} 15. Qd2 {[%emt 0:03:10]} Qb6 {[%emt 0:02:23]} 16. Bh6 {[%emt 0:01:50]} Bxh6 {[%emt 0:17:22]} 17. Qxh6 {[%emt 0:00:17]} f6 {[%emt 0:00:05]} 18. Rad1 {[%emt 0:04:06]} Ra7 {[%emt 0:00:53]} 19. Nd2 {[%emt 0:03:22]} axb5 {[%emt 0:03:58]} 20. Bxb5 {[%emt 0:01:44]} Rg7 {[%emt 0:04:08]} 21. Ne4 {[%emt 0:03:00]} g5 {[%emt 0:01:18]} 22. Qh5 {[%emt 0:03:00]} Bb7 {[%emt 0:11:17]} 23. g3 {[%emt 0:01:42]} g4 {[%emt 0:05:44]} 24. Qh6 {[%emt 0:01:15]} Rg6 {[%emt 0:10:38]} 25. Qc1 {[%emt 0:00:00]} f5 {[%emt 0:00:34]} 26. Nxc5 {[%emt 0:02:29]} Rc8 {[%emt 0:00:19]} 27. b4 {[%emt 0:01:20]} Nxb4 {[%emt 0:00:47]} 28. Nd7 {[%emt 0:00:25]} Qa7 {[%emt 0:02:35]} 29. Qb2 {[%emt 0:01:41]} Nd5 {[%emt 0:00:45]} 30. Ne5 {[%emt 0:00:33]} Rf6 {[%emt 0:06:20]} 31. Bd7 {[%emt 0:00:10]} Rc7 {[%emt 0:00:54]} 32. Nb5 {[%emt 0:00:41]} Qb6 {[%emt 0:00:18]} 33. a4 {[%emt 0:00:47]} Bc8 {[%emt 0:03:06]} 34. Bxc8 {[%emt 0:00:51]} Rxc8 {[%emt 0:00:18]} 35. Rxd5 {[%emt 0:00:02]} exd5 {[%emt 0:01:28]} 36. Nd7 {[%emt 0:00:40]} Nc4 {[%emt 0:00:04]} 37. Qxf6 {[%emt 0:00:16]} Qxf6 {[%emt 0:00:19]} 38. Nxf6+ {[%emt 0:00:34]} Kf7 {[%emt 0:00:19]} 39. Nxd5 {[%emt 0:00:10]} Ra8 {[%emt 0:00:35]} 40. Re7+ {[%emt 0:00:46]} Kf8 {[%emt 0:00:42]} 41. Nbc7 {[%emt 0:00:00]} Rxa4 {[%emt 0:00:47]} 42. Ne6+ {[%emt 0:00:33]} Kg8 {[%emt 0:00:09]} 43. Nf6+ {[%emt 0:00:00]} Kh8 {[%emt 0:00:04]} 44. Re8# {[%emt 0:00:00]} 1-0

[Event "Eurasia Open Cup 2019"]
[Site "Ekaterinburg"]
[Date "2019.08.07"]
[Round "7.29"]
[White "Isaev, Anton"]
[Black "Radzhabov, Rodion"]
[Result "0-1"]
[ECO "E11"]
[WhiteElo "2191"]
[BlackElo "2404"]
[Annotator "NA"]
[PlyCount "110"]
[EventDate "2019.07.31"]
[EventType "swiss"]
[EventCountry "RUS"]
[SourceTitle "playchess.com"]
[Source "ChessBase"]
[SourceQuality "1"]
[TimeControl "5400+30"]

1. d4 {[%emt 0:00:00]} Nf6 {[%emt 0:00:00]} 2. Nf3 {[%emt 0:00:00]} e6 {[%emt 0:00:00]} 3. c4 {[%emt 0:00:50]} Bb4+ {[%emt 0:00:00]} 4. Bd2 {[%emt 0:00:52]} Qe7 {[%emt 0:00:00]} 5. g3 {[%emt 0:00:48]} Bxd2+ {[%emt 0:00:00]} 6. Qxd2 {[%emt 0:00:48]} Nc6 {[%emt 0:00:05]} 7. b3 {[%emt 0:01:20]} d5 {[%emt 0:02:08]} 8. Bg2 {[%emt 0:01:47]} O-O {[%emt 0:01:03]} 9. Nc3 {[%emt 0:04:26]} Rd8 {[%emt 0:00:17]} 10. O-O {[%emt 0:01:05]} dxc4 {[%emt 0:05:50]} 11. bxc4 {[%emt 0:00:16]} e5 {[%emt 0:02:08]} 12. d5 {[%emt 0:07:02]} Na5 {[%emt 0:07:59]} 13. Nb5 {[%emt 0:07:29]} Nxc4 {[%emt 0:03:23]} 14. Qc3 {[%emt 0:03:43]} Nd6 {[%emt 0:18:37]} 15. Nxc7 {[%emt 0:13:19]} Rb8 {[%emt 0:01:15]} 16. Rfc1 {[%emt 0:00:41]} e4 {[%emt 0:07:38]} 17. Nd4 {[%emt 0:00:59]} Bg4 {[%emt 0:00:29]} 18. Qa5 {[%emt 0:07:48]} a6 {[%emt 0:09:11]} 19. h3 {[%emt 0:04:24]} Bh5 {[%emt 0:00:54]} 20. Rc3 {[%emt 0:01:27]} h6 {[%emt 0:00:41]} 21. Rac1 {[%emt 0:00:15]} Kh7 {[%emt 0:08:34]} 22. Qa3 {[%emt 0:11:07]} Rd7 {[%emt 0:06:49]} 23. Kh2 {[%emt 0:05:11]} Rc8 {[%emt 0:02:25]} 24. Qa5 {[%emt 0:03:19]} Qd8 {[%emt 0:00:53]} 25. g4 {[%emt 0:06:06]} Bxg4 {[%emt 0:06:38]} 26. hxg4 {[%emt 0:00:36]} Nxg4+ {[%emt 0:00:35]} 27. Kg1 {[%emt 0:01:26]} Qf6 {[%emt 0:00:00]} 28. Nf3 {[%emt 0:05:27]} exf3 {[%emt 0:01:01]} 29. exf3 {[%emt 0:04:03]} Ne5 {[%emt 0:02:45]} 30. Bh3 {[%emt 0:00:10]} Nxf3+ {[%emt 0:05:37]} 31. Rxf3 {[%emt 0:04:30]} Qg5+ {[%emt 0:00:05]} 32. Kh2 {[%emt 0:00:27]} Qxc1 {[%emt 0:00:00]} 33. Nb5 {[%emt 0:01:53]} axb5 {[%emt 0:02:05]} 34. Bxd7 {[%emt 0:00:06]} Rc5 {[%emt 0:04:13]} 35. Bh3 {[%emt 0:01:31]} Rxd5 {[%emt 0:00:00]} 36. Qb4 {[%emt 0:00:33]} Qc7 {[%emt 0:02:07]} 37. Qf4 {[%emt 0:00:56]} Qe7 {[%emt 0:00:45]} 38. Re3 {[%emt 0:00:49]} Qg5 {[%emt 0:00:00]} 39. Qf3 {[%emt 0:00:24]} Rd4 {[%emt 0:00:26]} 40. Qe2 {[%emt 0:00:52]} Qf6 {[%emt 0:01:00]} 41. Rg3 {[%emt 0:00:38]} Rf4 {[%emt 0:00:14]} 42. f3 {[%emt 0:00:50]} g6 {[%emt 0:00:14]} 43. Qe3 {[%emt 0:00:00]} Nc4 {[%emt 0:00:23]} 44. Qe2 {[%emt 0:00:45]} Ne5 {[%emt 0:00:34]} 45. Bg2 {[%emt 0:00:04]} b4 {[%emt 0:00:06]} 46. Rh3 {[%emt 0:00:13]} Kg7 {[%emt 0:00:12]} 47. Rg3 {[%emt 0:00:16]} h5 {[%emt 0:00:00]} 48. Rh3 {[%emt 0:00:00]} h4 {[%emt 0:00:00]} 49. Qe3 {[%emt 0:00:05]} Rc4 {[%emt 0:00:42]} 50. Qe2 {[%emt 0:00:49]} Qf4+ {[%emt 0:00:00]} 51. Kg1 {[%emt 0:00:04]} Rc1+ {[%emt 0:00:56]} 52. Bf1 {[%emt 0:00:33]} Rc3 {[%emt 0:00:06]} 53. Bg2 {[%emt 0:00:17]} g5 {[%emt 0:00:14]} 54. Qf2 {[%emt 0:00:23]} Nc4 {[%emt 0:00:37]} 55. Bf1 {[%emt 0:00:15]} Ne3 {[%emt 0:00:00]} 0-1

[Event "Eurasia Open Cup 2019"]
[Site "Ekaterinburg"]
[Date "2019.08.07"]
[Round "7.30"]
[White "Pastukhov, Leonid"]
[Black "Guseva, Marina"]
[Result "0-1"]
[ECO "A12"]
[WhiteElo "2215"]
[BlackElo "2379"]
[Annotator "NA"]
[PlyCount "88"]
[EventDate "2019.07.31"]
[EventType "swiss"]
[EventCountry "RUS"]
[SourceTitle "playchess.com"]
[Source "ChessBase"]
[SourceQuality "1"]
[TimeControl "5400+30"]

1. c4 {[%emt 0:00:00]} c6 {[%emt 0:00:00]} 2. Nf3 {[%emt 0:00:58]} d5 {[%emt 0:00:00]} 3. b3 {[%emt 0:01:20]} Bf5 {[%emt 0:00:38]} 4. Bb2 {[%emt 0:01:22]} e6 {[%emt 0:00:05]} 5. g3 {[%emt 0:00:00]} h6 {[%emt 0:00:07]} 6. Bg2 {[%emt 0:00:07]} Nd7 {[%emt 0:00:04]} 7. O-O {[%emt 0:00:42]} Ngf6 {[%emt 0:00:02]} 8. d3 {[%emt 0:00:02]} Be7 {[%emt 0:00:40]} 9. Nbd2 {[%emt 0:00:18]} O-O {[%emt 0:00:05]} 10. Qc2 {[%emt 0:04:05]} Bh7 {[%emt 0:00:12]} 11. e4 {[%emt 0:00:27]} dxe4 {[%emt 0:02:25]} 12. dxe4 {[%emt 0:00:38]} Nc5 {[%emt 0:00:22]} 13. Ne5 {[%emt 0:04:42]} Qb6 {[%emt 0:08:27]} 14. a3 {[%emt 0:00:00]} a5 {[%emt 0:00:15]} 15. Bc3 {[%emt 0:00:39]} Na6 {[%emt 0:03:10]} 16. Qb2 {[%emt 0:03:27]} Rfd8 {[%emt 0:03:38]} 17. h3 {[%emt 0:07:24]} Ne8 {[%emt 0:15:35]} 18. Nef3 {[%emt 0:17:03]} Nc5 {[%emt 0:00:35]} 19. Bd4 {[%emt 0:02:58]} Qc7 {[%emt 0:00:45]} 20. Qc2 {[%emt 0:07:40]} Nf6 {[%emt 0:03:00]} 21. Rae1 {[%emt 0:01:29]} Rd7 {[%emt 0:02:34]} 22. Re2 {[%emt 0:02:19]} Rad8 {[%emt 0:02:34]} 23. Bc3 {[%emt 0:01:05]} Nd3 {[%emt 0:02:05]} 24. Qa2 {[%emt 0:04:44]} Bc5 {[%emt 0:19:26]} 25. Kh2 {[%emt 0:12:10]} Nh5 {[%emt 0:02:58]} 26. e5 {[%emt 0:00:41]} Qb6 {[%emt 0:00:06]} 27. Ne4 {[%emt 0:04:37]} Bxe4 {[%emt 0:00:31]} 28. Rxe4 {[%emt 0:00:06]} Bxf2 {[%emt 0:10:45]} 29. Rg4 {[%emt 0:00:53]} Qe3 {[%emt 0:03:52]} 30. Bxa5 {[%emt 0:02:14]} Bxg3+ {[%emt 0:02:46]} 31. Rxg3 {[%emt 0:05:55]} Nxg3 {[%emt 0:00:12]} 32. Ra1 {[%emt 0:00:09]} Nxe5 {[%emt 0:04:18]} 33. Kxg3 {[%emt 0:03:52]} Nxf3 {[%emt 0:00:06]} 34. Bxd8 {[%emt 0:01:01]} Ne1+ {[%emt 0:00:57]} 35. Kh2 {[%emt 0:03:26]} Rxd8 {[%emt 0:00:09]} 36. Rxe1 {[%emt 0:04:30]} Qxe1 {[%emt 0:00:05]} 37. b4 {[%emt 0:00:35]} Qe5+ {[%emt 0:01:05]} 38. Kg1 {[%emt 0:00:27]} Rd1+ {[%emt 0:00:00]} 39. Bf1 {[%emt 0:00:18]} Qd4+ {[%emt 0:00:37]} 40. Qf2 {[%emt 0:00:13]} Qxc4 {[%emt 0:00:07]} 41. Kg2 {[%emt 0:00:57]} Qd5+ {[%emt 0:00:37]} 42. Kg3 {[%emt 0:00:16]} Qg5+ {[%emt 0:00:52]} 43. Kf3 {[%emt 0:00:28]} Qf5+ {[%emt 0:00:16]} 44. Kg2 {[%emt 0:00:27]} Qxf2+ {[%emt 0:00:04]} 0-1

[Event "Eurasia Open Cup 2019"]
[Site "Ekaterinburg"]
[Date "2019.08.07"]
[Round "7.31"]
[White "Chekletsov, Ilya"]
[Black "Larichev, Dmitry"]
[Result "1-0"]
[ECO "E01"]
[WhiteElo "2374"]
[BlackElo "2225"]
[Annotator "NA"]
[PlyCount "98"]
[EventDate "2019.07.31"]
[EventType "swiss"]
[EventCountry "RUS"]
[SourceTitle "playchess.com"]
[Source "ChessBase"]
[SourceQuality "1"]
[TimeControl "5400+30"]

1. d4 {[%emt 0:00:00]} Nf6 {[%emt 0:02:33]} 2. c4 {[%emt 0:00:00]} e6 {[%emt 0:01:48]} 3. g3 {[%emt 0:00:00]} d5 {[%emt 0:04:35]} 4. Bg2 {[%emt 0:00:00]} b6 {[%emt 0:01:09]} 5. cxd5 {[%emt 0:00:25]} exd5 {[%emt 0:00:11]} 6. Nf3 {[%emt 0:00:05]} Be7 {[%emt 0:00:00]} 7. Qa4+ {[%emt 0:00:00]} Bd7 {[%emt 0:01:49]} 8. Qc2 {[%emt 0:00:22]} O-O {[%emt 0:00:00]} 9. O-O {[%emt 0:00:04]} c5 {[%emt 0:04:37]} 10. b3 {[%emt 0:01:44]} Nc6 {[%emt 0:00:27]} 11. Bb2 {[%emt 0:00:05]} Rc8 {[%emt 0:00:23]} 12. dxc5 {[%emt 0:01:50]} bxc5 {[%emt 0:04:28]} 13. Nbd2 {[%emt 0:00:18]} Nb4 {[%emt 0:01:40]} 14. Qd1 {[%emt 0:00:14]} c4 {[%emt 0:00:53]} 15. a3 {[%emt 0:02:12]} c3 {[%emt 0:03:25]} 16. Bxc3 {[%emt 0:00:34]} Rxc3 {[%emt 0:00:04]} 17. axb4 {[%emt 0:00:34]} Qb6 {[%emt 0:00:59]} 18. Ne5 {[%emt 0:03:00]} Bb5 {[%emt 0:01:21]} 19. Nb1 {[%emt 0:05:10]} Rcc8 {[%emt 0:06:09]} 20. Na3 {[%emt 0:01:18]} Bxb4 {[%emt 0:09:48]} 21. Nxb5 {[%emt 0:00:12]} Qxb5 {[%emt 0:00:01]} 22. Rxa7 {[%emt 0:04:12]} Bc3 {[%emt 0:05:30]} 23. Nd3 {[%emt 0:01:02]} Ne4 {[%emt 0:03:18]} 24. Nf4 {[%emt 0:08:30]} Nd2 {[%emt 0:01:28]} 25. Nxd5 {[%emt 0:00:23]} Nxf1 {[%emt 0:13:15]} 26. Ne7+ {[%emt 0:00:18]} Kh8 {[%emt 0:00:04]} 27. Nxc8 {[%emt 0:00:11]} Nd2 {[%emt 0:05:58]} 28. Nd6 {[%emt 0:03:05]} Qc5 {[%emt 0:05:46]} 29. Rd7 {[%emt 0:00:10]} Kg8 {[%emt 0:07:40]} 30. Ne4 {[%emt 0:11:47]} Nxe4 {[%emt 0:00:23]} 31. Bxe4 {[%emt 0:00:05]} g6 {[%emt 0:01:14]} 32. Qd3 {[%emt 0:00:36]} Be1 {[%emt 0:04:48]} 33. Qf3 {[%emt 0:00:11]} Qc3 {[%emt 0:01:32]} 34. Qxc3 {[%emt 0:01:23]} Bxc3 {[%emt 0:00:02]} 35. Bd5 {[%emt 0:00:07]} Kg7 {[%emt 0:01:26]} 36. h4 {[%emt 0:01:13]} Kf6 {[%emt 0:00:39]} 37. Kg2 {[%emt 0:00:33]} h6 {[%emt 0:01:31]} 38. Kf3 {[%emt 0:00:21]} Bb4 {[%emt 0:01:45]} 39. e4 {[%emt 0:00:23]} Be7 {[%emt 0:01:26]} 40. Bc4 {[%emt 0:00:06]} Re8 {[%emt 0:00:27]} 41. e5+ {[%emt 0:01:48]} Kg7 {[%emt 0:01:10]} 42. Ke4 {[%emt 0:01:00]} Kf8 {[%emt 0:00:00]} 43. f4 {[%emt 0:00:55]} Ra8 {[%emt 0:01:11]} 44. g4 {[%emt 0:00:23]} Ra1 {[%emt 0:00:22]} 45. f5 {[%emt 0:01:23]} Re1+ {[%emt 0:00:15]} 46. Kf4 {[%emt 0:00:24]} g5+ {[%emt 0:00:54]} 47. Kf3 {[%emt 0:00:05]} Ke8 {[%emt 0:01:28]} 48. Bb5 {[%emt 0:00:06]} Kf8 {[%emt 0:00:23]} 49. f6 {[%emt 0:00:11]} Ke8 {[%emt 0:01:56]} 1-0

[Event "Eurasia Open Cup 2019"]
[Site "Ekaterinburg"]
[Date "2019.08.07"]
[Round "7.32"]
[White "Chigaeva, Anastasia"]
[Black "Tunik, Gennady"]
[Result "0-1"]
[ECO "E15"]
[WhiteElo "2193"]
[BlackElo "2371"]
[Annotator "NA"]
[PlyCount "110"]
[EventDate "2019.07.31"]
[EventType "swiss"]
[EventCountry "RUS"]
[SourceTitle "playchess.com"]
[Source "ChessBase"]
[SourceQuality "1"]
[TimeControl "5400+30"]

1. d4 {[%emt 0:00:00]} Nf6 {[%emt 0:00:00]} 2. c4 {[%emt 0:00:00]} e6 {[%emt 0:00:00]} 3. Nf3 {[%emt 0:00:00]} b6 {[%emt 0:00:00]} 4. g3 {[%emt 0:00:00]} Ba6 {[%emt 0:00:32]} 5. Qa4 {[%emt 0:00:00]} Bb7 {[%emt 0:00:55]} 6. Bg2 {[%emt 0:00:00]} c5 {[%emt 0:00:26]} 7. dxc5 {[%emt 0:00:00]} Bxc5 {[%emt 0:00:22]} 8. O-O {[%emt 0:00:29]} O-O {[%emt 0:02:44]} 9. Nc3 {[%emt 0:00:15]} Be7 {[%emt 0:02:07]} 10. Qc2 {[%emt 0:00:27]} a6 {[%emt 0:02:59]} 11. b3 {[%emt 0:10:32]} d6 {[%emt 0:06:12]} 12. Bb2 {[%emt 0:03:31]} Nbd7 {[%emt 0:00:46]} 13. Nd4 {[%emt 0:06:31]} Bxg2 {[%emt 0:02:40]} 14. Kxg2 {[%emt 0:00:07]} Qc7 {[%emt 0:00:00]} 15. e4 {[%emt 0:02:22]} Qb7 {[%emt 0:01:52]} 16. Qe2 {[%emt 0:02:51]} Rfe8 {[%emt 0:03:13]} 17. f3 {[%emt 0:01:27]} Rac8 {[%emt 0:00:19]} 18. Rfd1 {[%emt 0:02:04]} Bf8 {[%emt 0:00:53]} 19. Rd2 {[%emt 0:09:52]} Ne5 {[%emt 0:05:02]} 20. Nc2 {[%emt 0:15:41]} Rc7 {[%emt 0:14:28]} 21. Rad1 {[%emt 0:03:55]} h6 {[%emt 0:02:01]} 22. Ne3 {[%emt 0:04:43]} Rec8 {[%emt 0:04:37]} 23. a4 {[%emt 0:03:41]} Nfd7 {[%emt 0:04:15]} 24. f4 {[%emt 0:07:34]} Nc6 {[%emt 0:02:08]} 25. Ba3 {[%emt 0:01:22]} Na5 {[%emt 0:01:47]} 26. Bxd6 {[%emt 0:04:39]} Nxb3 {[%emt 0:02:12]} 27. Rb2 {[%emt 0:03:22]} Bxd6 {[%emt 0:00:54]} 28. Rxd6 {[%emt 0:00:16]} Na5 {[%emt 0:02:15]} 29. Rbd2 {[%emt 0:04:59]} Nf6 {[%emt 0:04:02]} 30. Rd8+ {[%emt 0:00:54]} Kh7 {[%emt 0:00:00]} 31. Rxc8 {[%emt 0:00:31]} Rxc8 {[%emt 0:00:02]} 32. Qd3 {[%emt 0:04:23]} Nb3 {[%emt 0:05:11]} 33. Rb2 {[%emt 0:00:00]} Nc5 {[%emt 0:00:11]} 34. Qd4 {[%emt 0:00:00]} Rc7 {[%emt 0:01:07]} 35. Nf1 {[%emt 0:04:33]} Qc6 {[%emt 0:04:32]} 36. Kg1 {[%emt 0:02:05]} Rd7 {[%emt 0:00:18]} 37. Qe3 {[%emt 0:00:00]} Rd3 {[%emt 0:00:27]} 38. Qe1 {[%emt 0:00:00]} Rxc3 {[%emt 0:00:27]} 39. Qxc3 {[%emt 0:00:58]} Nxa4 {[%emt 0:00:35]} 40. Qc2 {[%emt 0:00:24]} Nxb2 {[%emt 0:00:13]} 41. e5+ {[%emt 0:00:31]} Ne4 {[%emt 0:04:36]} 42. Qxb2 {[%emt 0:00:22]} Qc5+ {[%emt 0:00:00]} 43. Kg2 {[%emt 0:00:45]} Qxc4 {[%emt 0:00:03]} 44. Qxb6 {[%emt 0:01:01]} Qe2+ {[%emt 0:00:41]} 45. Kg1 {[%emt 0:00:37]} a5 {[%emt 0:00:00]} 46. Qb1 {[%emt 0:01:03]} g6 {[%emt 0:00:22]} 47. Qb6 {[%emt 0:00:22]} a4 {[%emt 0:00:17]} 48. Qe3 {[%emt 0:00:36]} Qxe3+ {[%emt 0:00:48]} 49. Nxe3 {[%emt 0:00:02]} a3 {[%emt 0:00:08]} 50. Nc2 {[%emt 0:00:06]} a2 {[%emt 0:00:00]} 51. Na1 {[%emt 0:00:11]} g5 {[%emt 0:00:00]} 52. Kg2 {[%emt 0:01:14]} gxf4 {[%emt 0:00:00]} 53. gxf4 {[%emt 0:00:34]} Kg6 {[%emt 0:00:59]} 54. Kf3 {[%emt 0:00:00]} Nc3 {[%emt 0:00:00]} 55. Kg4 {[%emt 0:00:07]} Nd5 {[%emt 0:00:06]} 0-1

[Event "Eurasia Open Cup 2019"]
[Site "Ekaterinburg"]
[Date "2019.08.07"]
[Round "7.33"]
[White "Bublei, Pavel"]
[Black "Krasikov, Vladislav"]
[Result "1-0"]
[ECO "E80"]
[WhiteElo "2353"]
[BlackElo "2211"]
[Annotator "NA"]
[PlyCount "49"]
[EventDate "2019.07.31"]
[EventType "swiss"]
[EventCountry "RUS"]
[SourceTitle "playchess.com"]
[Source "ChessBase"]
[SourceQuality "1"]
[TimeControl "5400+30"]

1. d4 {[%emt 0:04:15]} Nf6 {[%emt 0:00:00]} 2. c4 {[%emt 0:00:32]} g6 {[%emt 0:00:00]} 3. Nc3 {[%emt 0:01:14]} Bg7 {[%emt 0:00:01]} 4. e4 {[%emt 0:01:24]} d6 {[%emt 0:00:00]} 5. f3 {[%emt 0:00:19]} e5 {[%emt 0:05:04]} 6. d5 {[%emt 0:00:56]} Nh5 {[%emt 0:00:34]} 7. g3 {[%emt 0:00:18]} O-O {[%emt 0:03:32]} 8. Be3 {[%emt 0:00:07]} f5 {[%emt 0:01:28]} 9. exf5 {[%emt 0:00:07]} gxf5 {[%emt 0:00:09]} 10. Qd2 {[%emt 0:00:06]} Nd7 {[%emt 0:01:32]} 11. O-O-O {[%emt 0:00:47]} a6 {[%emt 0:07:10]} 12. Nh3 {[%emt 0:03:14]} Ndf6 {[%emt 0:08:57]} 13. Ng5 {[%emt 0:08:35]} Qe8 {[%emt 0:06:58]} 14. Bd3 {[%emt 0:03:31]} c6 {[%emt 0:11:21]} 15. Bc2 {[%emt 0:16:50]} Kh8 {[%emt 0:11:59]} 16. Ne6 {[%emt 0:03:55]} Bxe6 {[%emt 0:06:09]} 17. dxe6 {[%emt 0:00:00]} d5 {[%emt 0:05:25]} 18. cxd5 {[%emt 0:11:04]} cxd5 {[%emt 0:00:59]} 19. Nxd5 {[%emt 0:00:02]} Qxe6 {[%emt 0:00:26]} 20. Kb1 {[%emt 0:00:06]} Rad8 {[%emt 0:06:45]} 21. Nc7 {[%emt 0:01:18]} Qc8 {[%emt 0:04:16]} 22. Qa5 {[%emt 0:00:04]} Rxd1+ {[%emt 0:05:23]} 23. Rxd1 {[%emt 0:00:07]} Rd8 {[%emt 0:00:28]} 24. Rxd8+ {[%emt 0:06:16]} Qxd8 {[%emt 0:00:11]} 25. Qxe5 {[%emt 0:00:04]} 1-0